bitfinex-derivatives/quotes_ETHF0:USTF0_20240910
["timestamp","ask_amount","ask_price","bid_price","bid_amount"]
[1726000768682,1.46239,2393.2,2393.1,40.8]
[1726000768982,1.46239,2393.2,2393.1,44.06]
[1726000771878,0.41782,2393.2,2393.1,44.06]
[1726000772981,0.41782,2393.3,2393.1,44.06]
[1726000773181,1.04442,2393.6,2393.2,3.26]
[1726000773387,0.41781,2393.3,2393.2,3.26]
[1726000774688,0.41782,2393.2,2393.1,40.8]
[1726000779191,4.4805,2393.8,2393.1,51.1832507]
[1726000779377,0.79622,2393.8,2393.7,3.26]
[1726000780189,0.3706,2393.9,2393.7,7.4376]
[1726000780398,0.41772,2393.8,2393.7,3.26]
[1726000780785,0.41772,2393.8,2393.7,44.06]
[1726000782079,1.46203,2393.8,2393.7,44.06]
[1726000782285,1.46203,2393.8,2393.7,40.8]
[1726000782693,5.63963,2393.8,2393.7,40.8]
[1726000785998,5.63963,2393.8,2393.2,0.097]
[1726000785999,0.41781,2393.3,2393.2,0.097]
[1726000786296,0.41778,2393.5,2393.1,3.67784]
[1726000786589,0.3705,2393.7,2393.4,3.26]
[1726000786789,0.78825,2393.7,2393.4,3.26]
[1726000787190,0.41777,2393.5,2393.4,3.26]
[1726000787392,0.41777,2393.6,2393.4,3.26]
[1726000787586,0.3705,2393.7,2393.4,3.26]
[1726000787790,0.41773,2393.8,2393.4,3.67779]
[1726000787998,0.41773,2393.8,2393.4,4.06059]
[1726000788297,0.41774,2393.7,2393.4,3.6428]
[1726000788493,0.41773,2393.8,2393.4,4.06059]
[1726000788695,0.41773,2393.8,2393.6,3.26]
[1726000789500,1.04425,2394.0,2393.6,3.26]
[1726000789887,0.41772,2393.8,2393.6,3.26]
[1726000790489,0.41774,2393.7,2393.6,3.26]
[1726000791000,0.41774,2393.7,2393.6,7.4376]
[1726000791199,4.4748,2394.2,2393.6,7.4376]
[1726000791402,0.41767,2394.1,2394.0,3.26]
[1726000791805,0.41767,2394.1,2394.0,44.06]
[1726000792096,0.3728,2394.2,2394.0,48.2368]
[1726000792097,0.41766,2394.2,2394.0,48.2368]
[1726000792298,0.41766,2394.2,2394.0,44.06]
[1726000792814,0.41767,2394.1,2394.0,44.06]
[1726000793303,0.41767,2394.1,2394.0,48.2368]
[1726000793492,0.41767,2394.1,2394.0,44.06]
[1726000794299,0.41766,2394.2,2394.0,44.06]
[1726000794502,0.41767,2394.1,2394.0,44.06]
[1726000796598,1.46185,2394.1,2394.0,40.8]
[1726000797501,0.41767,2394.1,2394.0,40.8]
[1726000798397,0.41765,2394.3,2394.0,44.06]
[1726000798695,0.41763,2394.4,2394.0,44.47768]
[1726000798901,0.41763,2394.4,2394.3,3.26]
[1726000799097,1.81477,2394.6,2394.3,3.26]
[1726000799098,0.41761,2394.5,2394.3,3.26]
[1726000799402,0.4176,2394.5,2394.3,3.26]
[1726000799799,0.41754,2394.9,2394.5,0.4176]
[1726000800002,1.04372,2395.2,2394.8,3.26]
[1726000800208,1.04372,2395.2,2394.6,0.3872]
[1726000800209,0.41749,2395.1,2395.0,3.26]
[1726000800702,0.41746,2395.3,2395.0,3.26]
[1726000800907,0.41746,2395.3,2395.2,3.26]
[1726000801410,0.41743,2395.5,2395.2,3.26]
[1726000801810,0.41744,2395.4,2395.2,3.26]
[1726000803396,0.41743,2395.5,2395.2,3.26]
[1726000803594,0.7431,2395.6,2395.2,3.26]
[1726000803813,0.41746,2395.3,2395.2,3.26]
[1726000804407,0.41749,2395.1,2395.0,3.26]
[1726000804608,0.41748,2395.2,2394.9,40.8]
[1726000805504,0.41748,2395.2,2395.0,3.26]
[1726000805808,0.41749,2395.1,2395.0,3.26]
[1726000807303,0.3841,2395.4,2395.0,3.26]
[1726000807710,0.41749,2395.2,2395.0,3.26]
[1726000808610,0.3841,2395.4,2395.0,3.26]
[1726000808805,0.41749,2395.1,2395.0,3.26]
[1726000811806,0.7431,2395.6,2395.0,7.4352]
[1726000812001,0.41744,2395.5,2395.3,3.26]
[1726000813113,1.16052,2395.6,2395.3,3.26]
[1726000813411,4.102,2395.9,2395.5,3.26]
[1726000813711,1.15858,2395.8,2395.4,0.41743]
[1726000813902,1.15857,2395.8,2395.4,0.41743]
[1726000814102,0.7412,2395.8,2395.3,0.3667]
[1726000814306,1.15858,2395.8,2395.4,0.41743]
[1726000815015,0.37,2395.8,2395.3,0.7325]
[1726000815320,0.41737,2395.8,2395.7,3.26]
[1726000816011,0.41734,2396.0,2395.7,3.26]
[1726000816204,0.41734,2396.0,2395.6,0.4174]
[1726000816205,0.41734,2396.0,2395.9,3.26]
[1726000816603,0.3646,2396.4,2395.9,3.26]
[1726000816804,0.41731,2396.2,2396.1,3.26]
[1726000817203,4.102,2397.0,2396.1,13.4336]
[1726000817410,0.41716,2397.0,2396.9,3.26]
[1726000817711,1.1424,2397.2,2396.8,3.26]
[1726000817712,1.46014,2396.9,2396.8,3.26]
[1726000818014,0.41734,2396.0,2395.9,0.211]
[1726000818206,0.20743812,2396.4,2395.7,3.26]
[1726000818412,0.41734,2396.0,2395.9,44.06]
[1726000818616,0.41733,2396.1,2395.9,48.2336]
[1726000818907,0.3815,2396.3,2396.0,3.26]
[1726000819114,0.3815,2396.3,2395.9,40.8]
[1726000819115,0.41734,2396.0,2395.9,3.26]
[1726000819516,1.42473,2396.3,2395.9,3.26]
[1726000819517,0.41733,2396.1,2395.9,3.26]
[1726000819709,0.3815,2396.3,2396.0,44.06]
[1726000819909,0.41728,2396.4,2396.2,3.26]
[1726000820115,0.41728,2396.4,2396.0,44.81]
[1726000820315,0.41728,2396.3,2396.0,44.81]
[1726000820815,1.04313,2396.5,2396.0,44.81]
[1726000821119,0.4173,2396.3,2396.0,44.81]
[1726000821410,0.41731,2396.2,2396.0,44.81]
[1726000821608,0.4173,2396.3,2396.0,44.81]
[1726000822413,1.04313,2396.5,2396.0,44.81]
[1726000822614,0.7609,2396.6,2396.0,44.81]
[1726000822807,0.41729,2396.3,2396.0,44.81]
[1726000823014,0.4173,2396.3,2396.0,44.81]
[1726000823319,0.7609,2396.6,2396.0,44.81]
[1726000823620,0.41729,2396.3,2396.0,44.81]
[1726000823817,0.41728,2396.4,2396.0,44.81]
[1726000824015,0.41728,2396.4,2396.0,45.22733]
[1726000824317,1.04313,2396.5,2396.0,44.81]
[1726000824518,0.41731,2396.2,2396.0,44.81]
[1726000825019,0.41729,2396.3,2396.0,44.81]
[1726000825421,0.41732,2396.1,2396.0,40.8]
[1726000825713,0.41732,2396.1,2395.7,4.107]
[1726000825714,0.41735,2395.9,2395.7,0.097]
[1726000825918,0.41735,2395.9,2395.6,0.3878]
[1726000825919,0.41736,2395.9,2395.6,0.3878]
[1726000826119,0.41737,2395.8,2395.7,40.8]
[1726000826315,0.41735,2395.9,2395.7,40.8]
[1726000827418,0.41737,2395.8,2395.7,40.8]
[1726000828821,1.46081,2395.8,2395.7,40.8]
[1726000829216,0.41742,2395.5,2395.4,4.01]
[1726000829413,0.41746,2395.3,2395.2,4.01]
[1726000829616,1.04378,2395.0,2394.8,0.097]
[1726000829822,0.41756,2394.7,2394.6,44.81]
[1726000830117,0.41756,2394.7,2394.6,40.8]
[1726000830327,5.63747,2394.7,2394.6,40.8]
[1726000830621,0.41767,2394.1,2394.0,0.097]
[1726000830817,1.04405,2394.4,2393.8,4.3961]
[1726000831122,0.41767,2394.1,2394.0,40.8]
[1726000831309,1.04405,2394.4,2394.0,40.8]
[1726000831927,0.41767,2394.1,2394.0,40.8]
[1726000832215,1.04405,2394.4,2394.0,40.8]
[1726000832428,0.41766,2394.2,2394.0,40.8]
[1726000832918,0.3912,2394.6,2394.0,40.8]
[1726000833109,1.04413,2394.2,2394.1,4.01]
[1726000833314,0.41764,2394.3,2394.1,4.01]
[1726000833514,1.04396,2394.6,2394.1,4.01]
[1726000833722,0.41764,2394.3,2394.1,4.01]
[1726000833917,0.41765,2394.2,2394.1,4.01]
[1726000834123,0.41764,2394.3,2394.1,4.01]
[1726000834521,1.04403,2394.5,2394.1,4.01]
[1726000834920,0.41765,2394.2,2394.1,4.01]
[1726000835223,0.41764,2394.3,2394.1,4.01]
[1726000835523,0.41765,2394.2,2394.1,4.01]
[1726000836231,0.41762,2394.4,2394.1,8.1868]
[1726000836422,1.04394,2394.7,2394.1,4.01]
[1726000836423,1.044,2394.5,2394.1,4.01]
[1726000836725,0.41764,2394.3,2394.1,4.01]
[1726000837321,1.04396,2394.6,2394.1,4.01]
[1726000837523,0.41765,2394.2,2394.1,4.01]
[1726000838724,0.41764,2394.3,2394.1,4.01]
[1726000838918,0.41765,2394.2,2394.1,4.01]
[1726000839327,0.41764,2394.3,2394.1,4.01]
[1726000839713,1.044,2394.5,2394.1,4.01]
[1726000840116,0.7963,2394.8,2394.0,40.8]
[1726000840117,1.04396,2394.6,2394.0,40.8]
[1726000840322,0.41767,2394.1,2394.0,40.8]
[1726000841228,5.63865,2394.1,2394.0,40.8]
[1726000842120,4.59447,2394.1,2394.0,40.8]
[1726000842318,0.41767,2394.1,2394.0,40.8]
[1726000843226,0.3719,2394.2,2394.0,40.8]
[1726000844129,0.78955,2394.2,2394.0,40.8]
[1726000844624,0.78956,2394.2,2394.0,40.8]
[1726000845026,0.41767,2394.1,2394.0,40.8]
[1726000847223,1.46185,2394.1,2394.0,40.8]
[1726000847528,5.63865,2394.1,2394.0,40.8]
[1726000849124,4.59447,2394.1,2394.0,40.8]
[1726000849435,0.41767,2394.1,2394.0,44.06]
[1726000851532,1.46185,2394.1,2394.0,40.8]
[1726000851830,5.63865,2394.1,2394.0,40.8]
[1726000852028,0.4177,2393.9,2393.8,3.26]
[1726000852730,4.5953,2393.9,2393.8,3.26]
[1726000852936,4.5953,2393.9,2393.4,0.4737]
[1726000852937,0.41777,2393.5,2393.4,3.357]
[1726000853134,0.41777,2393.5,2393.4,3.26]
[1726000853334,0.3631,2393.6,2393.0,3.6375]
[1726000853534,0.41782,2393.3,2393.0,3.6375]
[1726000853831,0.41781,2393.3,2393.2,3.26]
[1726000854230,0.4178,2393.4,2393.2,3.26]
[1726000854533,0.4178,2393.4,2393.3,40.8]
[1726000856937,0.41779,2393.4,2393.3,40.8]
[1726000857635,0.3631,2393.6,2393.3,40.8]
[1726000857938,0.41779,2393.5,2393.3,40.8]
[1726000858237,0.41778,2393.5,2393.3,40.8]
[1726000858431,0.41779,2393.4,2393.3,40.8]
[1726000860235,1.40751,2393.6,2393.3,40.8]
[1726000860548,0.41778,2393.5,2393.3,40.8]
[1726000860937,0.3631,2393.6,2393.3,40.8]
[1726000861242,0.41779,2393.4,2393.3,40.8]
[1726000862234,1.04454,2393.3,2392.8,0.7729]
[1726000862440,0.41783,2393.2,2392.9,0.41787]
[1726000862644,0.41783,2393.2,2392.8,0.7729]
[1726000862645,0.41784,2393.1,2392.8,1.19078]
[1726000863440,0.41787,2393.0,2392.8,1.19078]
[1726000863642,0.41787,2393.0,2392.8,1.19079]
[1726000863833,0.41787,2393.0,2392.8,5.36999]
[1726000864234,0.41788,2392.9,2392.8,5.36999]
[1726000864430,1.04457,2393.2,2392.8,5.36999]
[1726000864736,1.04457,2393.2,2392.8,1.19079]
[1726000865136,0.41788,2392.9,2392.8,1.19079]
[1726000865633,0.41788,2392.9,2392.8,5.36999]
[1726000866638,1.40752,2393.6,2392.8,10.9521]
[1726000866845,0.3631,2393.6,2392.9,40.8]
[1726000867047,0.41786,2393.0,2392.9,40.8]
[1726000867544,1.46252,2393.0,2392.9,40.8]
[1726000867853,6.68638,2393.0,2392.9,40.8]
[1726000868449,6.68638,2393.0,2392.5,0.4766]
[1726000868450,0.41793,2392.6,2392.5,0.097]
[1726000868647,1.04473,2392.9,2392.1,4.428]
[1726000868648,0.418,2392.2,2392.1,0.097]
[1726000868944,0.418,2392.2,2392.0,0.4916]
[1726000868945,1.04504,2392.2,2391.7,0.398]
[1726000869142,0.41806,2391.9,2391.7,0.398]
[1726000869346,0.41806,2391.9,2391.4,0.112]
[1726000869347,0.41806,2391.9,2391.4,0.41813]
[1726000869649,0.41804,2392.0,2391.6,0.4181]
[1726000869945,0.7527,2392.5,2391.6,4.01]
[1726000870140,0.41798,2392.4,2392.0,0.41803]
[1726000870344,0.41799,2392.3,2392.0,0.398]
[1726000870549,0.41796,2392.4,2392.0,0.398]
[1726000870734,0.41798,2392.3,2392.0,0.398]
[1726000871148,0.418,2392.2,2392.0,0.398]
[1726000871650,0.41796,2392.5,2392.2,0.41799]
[1726000871948,0.41796,2392.5,2392.2,4.42799]
[1726000872248,0.41796,2392.5,2392.3,40.8]
[1726000872551,1.04474,2392.8,2392.3,41.21797]
[1726000872752,0.41795,2392.5,2392.3,41.21797]
[1726000873054,0.41795,2392.5,2392.3,40.8]
[1726000873639,12.3718,2392.4,2391.0,0.41106454]
[1726000873843,12.3718,2392.4,2389.5,3.22197495]
[1726000873844,5.05553,2391.0,2389.7,1.08036174]
[1726000874048,1.04569,2390.7,2389.8,40.8]
[1726000874238,1.04553,2391.0,2389.8,40.8]
[1726000874239,1.04571,2390.6,2389.8,40.8]
[1726000874444,0.41835,2390.2,2389.8,40.8]
[1726000874640,1.0889321,2390.6,2389.8,40.8]
[1726000874840,0.41834,2390.3,2389.8,40.8]
[1726000875441,0.41834,2390.3,2389.8,41.21842]
[1726000875647,2.1346321,2390.7,2389.8,41.21842]
[1726000876048,0.41838,2390.1,2389.8,40.8]
[1726000876356,0.41839,2390.0,2389.8,40.8]
[1726000876651,0.4184,2389.9,2389.8,40.8]
[1726000877347,0.41843,2389.8,2389.1,0.392]
[1726000877548,0.41844,2389.7,2389.1,0.81053]
[1726000877854,0.41844,2389.7,2389.2,40.8]
[1726000878245,0.41845,2389.6,2389.2,40.8]
[1726000878641,0.41848,2389.5,2389.2,40.8]
[1726000879042,1.04602,2389.9,2389.3,4.1856]
[1726000879249,1.04602,2389.9,2389.2,40.8]
[1726000879250,0.41846,2389.6,2389.2,41.21852]
[1726000879448,0.41847,2389.5,2389.2,41.21852]
[1726000879660,1.04597,2390.0,2389.3,4.60409]
[1726000879849,0.41844,2389.7,2389.3,0.41849]
[1726000880948,1.04597,2390.0,2389.2,40.8]
[1726000881152,0.41844,2389.7,2389.3,0.4185]
[1726000881357,0.41845,2389.7,2389.3,0.41849]
[1726000881652,0.41846,2389.6,2389.2,41.21852]
[1726000881858,0.41844,2389.7,2389.3,0.4185]
[1726000883655,0.41851,2389.3,2389.2,40.8]
[1726000883852,4.3968,2389.9,2389.2,40.8]
[1726000884047,0.41851,2389.3,2389.2,40.8]
[1726000886551,1.04606,2389.8,2389.2,44.9856]
[1726000886747,0.41849,2389.4,2389.2,40.8]
[1726000887060,0.41851,2389.3,2389.2,40.8]
[1726000888650,0.4185,2389.4,2389.2,40.8]
[1726000888962,0.41849,2389.4,2389.2,40.8]
[1726000889155,0.41848,2389.5,2389.2,40.8]
[1726000889459,0.4185,2389.4,2389.2,40.8]
[1726000889647,0.5729,2390.0,2389.2,40.8]
[1726000889846,0.41848,2389.5,2389.2,41.21852]
[1726000890373,1.04606,2389.8,2389.2,41.21852]
[1726000890374,0.41846,2389.6,2389.3,0.41851]
[1726000890560,0.41847,2389.5,2389.3,0.41851]
[1726000890859,0.41851,2389.3,2389.2,40.8]
[1726000892652,0.4185,2389.4,2389.2,40.8]
[1726000893755,0.41848,2389.5,2389.2,40.8]
[1726000893958,0.4185,2389.4,2389.2,40.8]
[1726000894359,0.41848,2389.5,2389.2,40.8]
[1726000894556,0.41849,2389.4,2389.2,40.8]
[1726000894753,0.41848,2389.5,2389.2,41.21852]
[1726000894953,1.0461,2389.7,2389.2,40.8]
[1726000895156,0.41849,2389.5,2389.2,40.8]
[1726000895759,1.99351,2390.0,2389.2,40.8]
[1726000896062,0.41845,2389.6,2389.3,0.4185]
[1726000897147,1.04601,2389.9,2389.4,0.41848]
[1726000897359,0.41845,2389.7,2389.4,0.41848]
[1726000897750,0.41845,2389.7,2389.5,0.41847]
[1726000898158,0.41845,2389.7,2389.4,0.41848]
[1726000898956,0.41843,2389.8,2389.5,0.41847]
[1726000899156,0.41844,2389.7,2389.5,0.41847]
[1726000899357,0.41843,2389.8,2389.5,0.41847]
[1726000899554,0.41844,2389.7,2389.5,0.41847]
[1726000900660,0.41843,2389.8,2389.5,0.41847]
[1726000901149,0.41844,2389.7,2389.5,0.41847]
[1726000901662,0.41843,2389.8,2389.5,0.41847]
[1726000905767,0.41841,2389.9,2389.5,0.41847]
[1726000906468,0.41842,2389.8,2389.5,0.41847]
[1726000907255,0.41841,2389.9,2389.6,0.41845]
[1726000908076,0.41842,2389.8,2389.6,0.41845]
[1726000908671,6.40354,2390.5,2389.9,1.04601]
[1726000908672,4.312,2390.5,2389.9,1.04601]
[1726000908965,0.3875,2390.7,2390.3,0.41832]
[1726000909174,0.80577,2390.7,2390.3,0.41832]
[1726000909361,0.80577,2390.7,2390.4,40.8]
[1726000909564,0.80577,2390.7,2390.4,41.21831]
[1726000912673,0.3845,2390.0,2389.8,40.8]
[1726000914272,0.3845,2390.0,2389.8,41.21842]
[1726000914467,0.41837,2390.1,2389.8,41.21841]
[1726000919473,1.07343257,2390.0,2389.8,41.21841]
[1726000921170,1.07343257,2390.0,2389.8,40.8]
[1726000921482,1.07343257,2389.9,2389.8,41.21842]
[1726000921780,1.49181257,2390.0,2389.8,41.21842]
[1726000922469,1.49181257,2390.0,2389.9,0.4184]
[1726000922470,1.07343257,2390.0,2389.9,0.4184]
[1726000922670,1.07343257,2390.1,2390.0,0.41838]
[1726000922977,0.41837,2390.1,2389.9,0.41839]
[1726000923173,1.51311797,2390.1,2390.0,40.8]
[1726000923380,1.51305817,2390.1,2390.0,40.8]
[1726000923575,0.41837,2390.1,2390.0,40.8]
[1726000923984,3.07443886,2390.1,2390.0,40.8]
[1726000924372,2.02851886,2390.1,2390.0,40.8]
[1726000924573,0.41837,2390.1,2390.0,40.8]
[1726000924770,2.02851886,2390.1,2390.0,40.8]
[1726000925170,1.61014886,2390.1,2389.7,0.3745]
[1726000925369,0.41849,2389.5,2389.3,1.4537836]
[1726000925676,1.51339265,2389.6,2389.3,0.80421]
[1726000925875,1.09493265,2389.5,2389.3,0.8042]
[1726000926171,1.09493265,2389.5,2389.3,0.80419]
[1726000926375,1.09493265,2389.5,2389.4,0.41849]
[1726000926577,1.09493265,2389.6,2389.4,0.41849]
[1726000926778,1.09493265,2389.7,2389.6,0.41845]
[1726000926980,1.51337265,2389.7,2389.5,0.78946]
[1726000927381,1.51338265,2389.7,2389.5,0.78946]
[1726000927888,1.09493265,2389.8,2389.6,0.41845]
[1726000928369,1.51338265,2389.7,2389.5,0.78946]
[1726000928577,0.41845,2389.7,2389.6,0.41845]
[1726000928774,0.41845,2389.6,2389.5,4.97426]
[1726000928982,0.41845,2389.6,2389.5,0.371]
[1726000929179,1.51338265,2389.6,2389.5,0.371]
[1726000930287,0.41847,2389.5,2389.3,1.8722736]
[1726000930473,1.09493265,2389.6,2389.3,1.8722836]
[1726000930677,0.41849,2389.4,2389.3,0.3857]
[1726000931182,1.51341265,2389.5,2389.3,0.80421]
[1726000931486,0.41849,2389.4,2389.3,0.3857]
[1726000931783,1.09493265,2389.5,2389.3,0.80421]
[1726000931784,1.51342265,2389.5,2389.3,0.80421]
[1726000931978,1.09493265,2389.5,2389.3,0.3857]
[1726000932182,0.41848,2389.5,2389.3,1.8722736]
[1726000932776,0.41848,2389.5,2389.3,1.4537836]
[1726000932978,1.51340265,2389.6,2389.4,1.0680836]
[1726000933178,1.51340265,2389.6,2389.4,1.4865636]
[1726000934182,1.09493265,2389.6,2389.5,0.41847]
[1726000934381,1.51340265,2389.6,2389.4,1.4865636]
[1726000934586,0.41847,2389.5,2389.4,0.41848]
[1726000934982,1.09493265,2389.6,2389.3,1.8722736]
[1726000935186,0.41849,2389.4,2389.3,0.80419]
[1726000935483,0.41849,2389.4,2389.3,6.0578736]
[1726000935883,1.09493265,2389.5,2389.4,0.41849]
[1726000936086,1.09530036,2389.9,2389.8,1.46448]
[1726000936381,1.09530036,2390.2,2390.1,0.41837]
[1726000936585,1.09530036,2390.3,2390.2,0.41835]
[1726000936787,1.09530036,2390.4,2390.3,0.41833]
[1726000937086,1.09530036,2390.6,2390.5,0.4183]
[1726000937384,1.61014886,2390.8,2390.2,45.6721254]
[1726000937385,1.09530036,2390.8,2390.4,4.35722662]
[1726000937588,1.09530036,2390.8,2390.5,0.41828]
[1726000937976,1.09530036,2390.8,2390.4,4.35722662]
[1726000938172,1.09530036,2390.8,2390.6,0.41828]
[1726000938380,1.09530036,2390.8,2390.7,0.41826]
[1726000938784,1.09530036,2391.0,2390.7,4.1824]
[1726000938989,1.09530036,2391.0,2390.6,4.35722662]
[1726000939190,1.88870036,2391.2,2390.8,0.41824]
[1726000939489,1.48820036,2391.2,2391.0,0.41821]
[1726000939680,1.09530036,2391.2,2391.0,0.41821]
[1726000940075,1.09530036,2391.2,2390.9,3.27]
[1726000940281,1.09530036,2391.3,2391.0,0.4182]
[1726000940486,1.09530036,2391.3,2390.9,3.27]
[1726000940688,1.09530036,2391.4,2391.1,0.41819]
[1726000941283,1.48820036,2391.5,2391.1,0.41819]
[1726000941594,1.48820036,2391.5,2391.0,0.4182]
[1726000941881,1.48820036,2391.5,2391.2,0.41817]
[1726000942080,1.48820036,2391.5,2391.3,0.3809]
[1726000942275,1.48820036,2391.5,2391.4,40.8]
[1726000942276,0.3929,2391.5,2391.4,40.8]
[1726000943479,14.93980036,2391.5,2390.5,1.47192662]
[1726000943790,1.09115457,2391.3,2390.7,0.41825]
[1726000943992,0.41818,2391.2,2390.8,40.8]
[1726000944192,0.41821,2391.0,2390.6,0.3809]
[1726000944388,0.4003,2390.9,2390.6,0.3809]
[1726000944690,0.4003,2390.9,2390.7,40.8]
[1726000944989,0.4003,2390.9,2390.7,41.21826]
[1726000945186,0.4003,2390.9,2390.8,0.41824]
[1726000945379,0.3835,2391.2,2390.8,0.41824]
[1726000945692,0.7838,2391.2,2390.8,0.41824]
[1726000945889,1.20198,2391.2,2390.8,0.41824]
[1726000946690,1.09115457,2391.4,2390.9,3.27]
[1726000946891,4.102,2391.6,2391.0,0.3652]
[1726000947084,1.50924457,2391.7,2391.3,0.41815]
[1726000947288,0.41809,2391.7,2391.3,0.41815]
[1726000947491,1.84305457,2391.8,2391.1,3.6367]
[1726000947492,0.41811,2391.6,2391.2,0.41817]
[1726000947789,0.4181,2391.6,2391.2,0.41816]
[1726000948183,0.41811,2391.6,2391.3,0.41815]
[1726000948586,0.41811,2391.6,2391.2,0.41817]
[1726000948786,0.41812,2391.6,2391.2,0.41817]
[1726000949789,0.4181,2391.7,2391.1,3.6367]
[1726000949986,0.4181,2391.7,2391.4,0.41813]
[1726000950691,0.4181,2391.7,2391.3,3.27]
[1726000950884,0.4181,2391.7,2391.4,0.41814]
[1726000951085,0.7519,2391.8,2391.3,3.27]
[1726000951284,0.41812,2391.6,2391.3,3.27]
[1726000951895,0.41811,2391.6,2391.3,3.68815]
[1726000952791,1.16997,2391.8,2391.5,0.41811]
[1726000952987,1.16998,2391.8,2391.5,0.41811]
[1726000953191,1.42021,2392.0,2391.5,0.41811]
[1726000953192,0.41803,2392.0,2391.7,0.41809]
[1726000953385,0.41803,2392.0,2391.7,3.68807]
[1726000953598,0.78143,2392.1,2391.8,0.41806]
[1726000953795,0.3634,2392.1,2391.9,40.8]
[1726000953987,0.3634,2392.1,2391.9,41.21805]
[1726000955484,0.41803,2392.0,2391.9,40.8]
[1726000955694,0.79103,2392.0,2391.9,40.8]
[1726000956590,1.04489,2392.5,2391.9,44.9808]
[1726000956795,0.41799,2392.3,2392.1,0.41801]
[1726000957188,0.418,2392.3,2392.0,3.68802]
[1726000957485,0.418,2392.2,2392.0,3.68802]
[1726000957898,0.41799,2392.3,2392.1,0.41802]
[1726000958295,0.41797,2392.4,2392.2,0.418]
[1726000958692,0.41798,2392.3,2392.1,0.78561]
[1726000958899,0.7799,2392.5,2392.1,0.78561]
[1726000959093,0.41799,2392.3,2392.1,0.78561]
[1726000960696,0.7799,2392.5,2392.1,0.7856]
[1726000960892,0.41796,2392.4,2392.1,0.7856]
[1726000961088,3.27,2392.3,2391.3,0.21]
[1726000961284,3.27,2392.1,2391.1,0.7923]
[1726000961489,1.1624,2392.0,2391.3,3.27]
[1726000961694,0.41806,2391.9,2391.5,0.41812]
[1726000962102,1.1624,2392.0,2391.6,0.41809]
[1726000962400,1.17974,2392.0,2391.6,0.41809]
[1726000962594,1.04521,2391.8,2391.3,40.8]
[1726000962794,1.80679,2392.0,2391.3,41.21815]
[1726000962795,0.4181,2391.7,2391.3,41.21815]
[1726000962994,0.41811,2391.6,2391.3,41.21815]
[1726000963301,0.41809,2391.7,2391.4,0.41813]
[1726000963496,0.4181,2391.7,2391.3,44.48815]
[1726000963897,0.4181,2391.7,2391.4,0.41814]
[1726000965703,0.4181,2391.6,2391.3,41.21815]
[1726000966806,0.7617,2392.0,2391.3,40.8]
[1726000966807,0.41813,2391.5,2391.3,40.8]
[1726000967009,1.80682,2392.0,2391.4,0.41813]
[1726000967303,0.4181,2391.6,2391.4,0.41813]
[1726000967703,0.7617,2392.0,2391.3,40.8]
[1726000967899,0.41809,2391.7,2391.4,0.41814]
[1726000968096,0.41811,2391.6,2391.4,0.41814]
[1726000969408,0.41813,2391.5,2391.3,41.21815]
[1726000969802,0.41813,2391.5,2391.4,0.41814]
[1726000970905,0.41812,2391.6,2391.4,0.41814]
[1726000973210,0.41813,2391.5,2391.4,0.41814]
[1726000973511,0.4181,2391.6,2391.4,0.41813]
[1726000974209,0.4181,2391.6,2391.5,0.41812]
[1726000976508,0.41813,2391.5,2391.4,0.41813]
[1726000976814,1.04518,2391.8,2391.3,40.8]
[1726000977305,0.41812,2391.5,2391.4,0.41812]
[1726000978913,0.41812,2391.6,2391.5,0.41812]
[1726000980420,0.41813,2391.5,2391.4,0.41813]
[1726000980907,0.41813,2391.5,2391.4,4.59973]
[1726000981310,0.41811,2391.6,2391.5,0.41811]
[1726000981820,0.4181,2391.7,2391.6,0.41809]
[1726000982112,0.4181,2391.7,2391.6,0.80929]
[1726000982413,1.50925457,2391.7,2391.6,0.80929]
[1726000982609,1.09115457,2391.7,2391.6,0.80929]
[1726000982810,1.09115457,2391.9,2391.6,7.8428]
[1726000983010,1.09115457,2391.9,2391.8,0.41807]
[1726000983211,1.09353359,2392.0,2391.8,4.31518]
[1726000983407,1.09353359,2392.0,2391.9,1.46319]
[1726000983603,1.09353359,2392.2,2391.9,11.59034]
[1726000983814,1.09353359,2392.2,2392.1,0.41802]
[1726000984305,1.09353359,2392.2,2392.1,45.78062]
[1726000985210,1.90352359,2392.3,2392.2,0.418]
[1726000985816,1.48553359,2392.3,2392.2,0.418]
[1726000987110,1.90351359,2392.3,2392.2,0.418]
[1726000987714,0.418,2392.2,2392.1,41.6006]
[1726000988117,1.90352359,2392.3,2392.2,0.418]
[1726000989611,0.80998,2392.3,2392.2,0.418]
[1726000989812,1.51151359,2392.4,2392.3,0.41798]
[1726000991516,0.418,2392.2,2392.1,41.60061]
[1726000991715,1.51152359,2392.3,2392.2,0.41798]
[1726000992119,0.41799,2392.3,2392.2,0.41798]
[1726000992316,1.51150359,2392.4,2392.3,0.41798]
[1726000992616,1.09353359,2392.4,2392.3,0.41798]
[1726000992923,1.09353359,2392.4,2392.3,4.59798]
[1726000993116,0.41789,2392.9,2392.5,0.41795]
[1726000993313,0.41791,2392.7,2392.6,3.6681]
[1726000993513,0.41789,2392.9,2392.6,3.6681]